Department family,Entity,Date,Expense type,Expense area,Supplier,Transaction number,Amount
Department of Health,Leicestershire Partnership NHS Trust,03/07/23,Payroll Deductions -Salary Sacrifice Cars Scheme,Balance Sheet Collection,TUSKER,78035,45536.15
Department of Health,Leicestershire Partnership NHS Trust,04/07/23,Healthcare Services / Recharges from Non-NHS Bodies,Adult Eating Disorder Collaborative,PRIORY GROUP,301JUN23LEC,75712.50
Department of Health,Leicestershire Partnership NHS Trust,04/07/23,Photocopying,Estates & Facilities Central,LEXMARK INTERNATIONAL LTD,700700300186,-48261.16
Department of Health,Leicestershire Partnership NHS Trust,04/07/23,Lease Rents (IFRS16),"St Peters Health Center (Part 1st and 2nd floors) (P66, LPT)",LEICESTER LIFT CO,LEP1-SI1292,34244.84
Department of Health,Leicestershire Partnership NHS Trust,04/07/23,Crs_NHS_LT1y -Resus Inventory Supplied.,Balance Sheet Collection,SUPPLY CHAIN CO LTD,1124083719,37226.64
Department of Health,Leicestershire Partnership NHS Trust,05/07/23,Unitary Payment,"The Agnes Unit (AKA Assessment and Treatment Centre) (P85, LPT)",ARDEN PARTNERSHIP (LEICESTER),SI0127,144317.23
Department of Health,Leicestershire Partnership NHS Trust,05/07/23,Lease Rents (IFRS16),County Hall,LEIC COUNTY COUNCIL,6295345,34488.50
Department of Health,Leicestershire Partnership NHS Trust,06/07/23,Network Costs - WAN Maint,HIS Infrastructure,VIRGIN MEDIA BUSINESS,262421-210,36244.31
Department of Health,Leicestershire Partnership NHS Trust,07/07/23,Payroll Deductions -Home Electronics 81 Jun 23,Balance Sheet Collection,SME HCI LTD,146455,30290.90
Department of Health,Leicestershire Partnership NHS Trust,07/07/23,Nurse - Band 6 -Agency,AMH - Central Access Point,HCL NURSING,HNSI0001387,2501.01
Department of Health,Leicestershire Partnership NHS Trust,07/07/23,NURSE - BAND 2 - AGENCY,Agnes Unit,HCL NURSING,HNSI0001387,18540.71
Department of Health,Leicestershire Partnership NHS Trust,07/07/23,NURSE - BAND 5 - AGENCY,Agnes Unit,HCL NURSING,HNSI0001387,20016.01
Department of Health,Leicestershire Partnership NHS Trust,07/07/23,Nurse - Band 7 - Agency,Agnes Unit,HCL NURSING,HNSI0001387,1573.80
Department of Health,Leicestershire Partnership NHS Trust,07/07/23,NURSE - BAND 2 - AGENCY,Ashby Ward (Bradgate Unit),HCL NURSING,HNSI0001387,3543.77
Department of Health,Leicestershire Partnership NHS Trust,07/07/23,NURSE - BAND 5 - AGENCY,Ashby Ward (Bradgate Unit),HCL NURSING,HNSI0001387,9169.13
Department of Health,Leicestershire Partnership NHS Trust,07/07/23,NURSE - BAND 2 - AGENCY,Aston Ward Bradgate Unit (Prev Welford),HCL NURSING,HNSI0001387,838.23
Department of Health,Leicestershire Partnership NHS Trust,07/07/23,NURSE - BAND 5 - AGENCY,Aston Ward Bradgate Unit (Prev Welford),HCL NURSING,HNSI0001387,761.13
Department of Health,Leicestershire Partnership NHS Trust,07/07/23,NURSE - BAND 2 - AGENCY,Beaumont Ward - Bradgate Unit,HCL NURSING,HNSI0001387,2367.66
Department of Health,Leicestershire Partnership NHS Trust,07/07/23,NURSE - BAND 5 - AGENCY,Beaumont Ward - Bradgate Unit,HCL NURSING,HNSI0001387,4575.73
Department of Health,Leicestershire Partnership NHS Trust,07/07/23,NURSE - BAND 2 - AGENCY,Belvoir Psychiatric Intensive Care Unit,HCL NURSING,HNSI0001387,3329.88
Department of Health,Leicestershire Partnership NHS Trust,07/07/23,NURSE - BAND 5 - AGENCY,Belvoir Psychiatric Intensive Care Unit,HCL NURSING,HNSI0001387,5520.38
Department of Health,Leicestershire Partnership NHS Trust,07/07/23,NURSE - BAND 2 - AGENCY,Bosworth Ward - Bradgate Unit,HCL NURSING,HNSI0001387,713.66
Department of Health,Leicestershire Partnership NHS Trust,07/07/23,NURSE - BAND 5 - AGENCY,Bosworth Ward - Bradgate Unit,HCL NURSING,HNSI0001387,3176.61
Department of Health,Leicestershire Partnership NHS Trust,07/07/23,NURSE - BAND 2 - AGENCY,Cedar (Willows),HCL NURSING,HNSI0001387,1136.54
Department of Health,Leicestershire Partnership NHS Trust,07/07/23,NURSE - BAND 5 - AGENCY,Cedar (Willows),HCL NURSING,HNSI0001387,1001.91
Department of Health,Leicestershire Partnership NHS Trust,07/07/23,Nurse - Band 6 -Agency,City West CMHT MHSOP,HCL NURSING,HNSI0001387,1046.25
Department of Health,Leicestershire Partnership NHS Trust,07/07/23,NURSE - BAND 2 - AGENCY,Coleman Ward,HCL NURSING,HNSI0001387,1605.43
Department of Health,Leicestershire Partnership NHS Trust,07/07/23,NURSE - BAND 5 - AGENCY,Coleman Ward,HCL NURSING,HNSI0001387,2134.95
Department of Health,Leicestershire Partnership NHS Trust,07/07/23,NURSE - BAND 5 - AGENCY,Crisis Resolution,HCL NURSING,HNSI0001387,880.95
Department of Health,Leicestershire Partnership NHS Trust,07/07/23,NURSE - BAND 2 - AGENCY,Griffin Ward (HPC),HCL NURSING,HNSI0001387,4795.98
Department of Health,Leicestershire Partnership NHS Trust,07/07/23,NURSE - BAND 5 - AGENCY,Griffin Ward (HPC),HCL NURSING,HNSI0001387,8088.21
Department of Health,Leicestershire Partnership NHS Trust,07/07/23,NURSE - BAND 2 - AGENCY,Gwendolen Ward,HCL NURSING,HNSI0001387,2653.13
Department of Health,Leicestershire Partnership NHS Trust,07/07/23,NURSE - BAND 5 - AGENCY,Gwendolen Ward,HCL NURSING,HNSI0001387,1368.40
Department of Health,Leicestershire Partnership NHS Trust,07/07/23,NURSE - BAND 2 - AGENCY,Heather Ward,HCL NURSING,HNSI0001387,4553.96
Department of Health,Leicestershire Partnership NHS Trust,07/07/23,NURSE - BAND 5 - AGENCY,Heather Ward,HCL NURSING,HNSI0001387,6834.54
Department of Health,Leicestershire Partnership NHS Trust,07/07/23,NURSE - BAND 2 - AGENCY,Kirby Ward,HCL NURSING,HNSI0001387,3859.27
Department of Health,Leicestershire Partnership NHS Trust,07/07/23,NURSE - BAND 5 - AGENCY,Kirby Ward,HCL NURSING,HNSI0001387,283.64
Department of Health,Leicestershire Partnership NHS Trust,07/07/23,NURSE - BAND 2 - AGENCY,Maple Ward,HCL NURSING,HNSI0001387,1179.64
Department of Health,Leicestershire Partnership NHS Trust,07/07/23,Nurse - Band 6 -Agency,Mental Health Liaison Team,HCL NURSING,HNSI0001387,816.30
Department of Health,Leicestershire Partnership NHS Trust,07/07/23,NURSE - BAND 5 - AGENCY,Mill Lodge,HCL NURSING,HNSI0001387,1782.49
Department of Health,Leicestershire Partnership NHS Trust,07/07/23,NURSE - BAND 2 - AGENCY,Phoenix Ward (HPC),HCL NURSING,HNSI0001387,1952.61
Department of Health,Leicestershire Partnership NHS Trust,07/07/23,NURSE - BAND 5 - AGENCY,Phoenix Ward (HPC),HCL NURSING,HNSI0001387,2930.15
Department of Health,Leicestershire Partnership NHS Trust,07/07/23,NURSE - BAND 2 - AGENCY,Place Of Safety Assessment Unit,HCL NURSING,HNSI0001387,1033.05
Department of Health,Leicestershire Partnership NHS Trust,07/07/23,NURSE - BAND 5 - AGENCY,Place Of Safety Assessment Unit,HCL NURSING,HNSI0001387,4178.50
Department of Health,Leicestershire Partnership NHS Trust,07/07/23,NURSE - BAND 5 - AGENCY,Stewart House,HCL NURSING,HNSI0001387,437.47
Department of Health,Leicestershire Partnership NHS Trust,07/07/23,NURSE - BAND 2 - AGENCY,Sycamore (Willows),HCL NURSING,HNSI0001387,1610.53
Department of Health,Leicestershire Partnership NHS Trust,07/07/23,NURSE - BAND 2 - AGENCY,The Grange,HCL NURSING,HNSI0001387,211.21
Department of Health,Leicestershire Partnership NHS Trust,07/07/23,NURSE - BAND 2 - AGENCY,Thornton Ward - Bradgate Unit,HCL NURSING,HNSI0001387,1136.51
Department of Health,Leicestershire Partnership NHS Trust,07/07/23,NURSE - BAND 5 - AGENCY,Thornton Ward - Bradgate Unit,HCL NURSING,HNSI0001387,2330.90
Department of Health,Leicestershire Partnership NHS Trust,07/07/23,NURSE - BAND 2 - AGENCY,Watermead Ward (Bradgate Unit),HCL NURSING,HNSI0001387,409.08
Department of Health,Leicestershire Partnership NHS Trust,07/07/23,Nurse - Band 6 -Agency,CAMHS Waiting List Monies,HCL WORKFORCE SOLUTIONS,HWSI0001813,14845.75
Department of Health,Leicestershire Partnership NHS Trust,07/07/23,Nurse - Band 6 -Agency,Crisis Response and Home Treatment,HCL WORKFORCE SOLUTIONS,HWSI0001813,8680.98
Department of Health,Leicestershire Partnership NHS Trust,07/07/23,WIP Project Not in BS - Buildings excl Dwellings,Work in Progress,TILBURY DOUGLAS CONSTRUCTION LTD,23070047,34594.16
Department of Health,Leicestershire Partnership NHS Trust,07/07/23,WIP Project Not in BS - Buildings excl Dwellings,Work in Progress,TILBURY DOUGLAS CONSTRUCTION LTD,23070048,41181.77
Department of Health,Leicestershire Partnership NHS Trust,07/07/23,WIP Project Not in BS - Buildings excl Dwellings,Work in Progress,TILBURY DOUGLAS CONSTRUCTION LTD,23070053,66036.64
Department of Health,Leicestershire Partnership NHS Trust,07/07/23,WIP Project Not in BS - Buildings excl Dwellings,Work in Progress,TILBURY DOUGLAS CONSTRUCTION LTD,23070055,37160.63
Department of Health,Leicestershire Partnership NHS Trust,07/07/23,WIP Project Not in BS - Buildings excl Dwellings,Work in Progress,TILBURY DOUGLAS CONSTRUCTION LTD,23070060,51268.81
Department of Health,Leicestershire Partnership NHS Trust,07/07/23,WIP Project Not in BS - Buildings excl Dwellings,Work in Progress,TILBURY DOUGLAS CONSTRUCTION LTD,23070066,39939.02
Department of Health,Leicestershire Partnership NHS Trust,07/07/23,WIP Project Not in BS - Buildings excl Dwellings,Work in Progress,TILBURY DOUGLAS CONSTRUCTION LTD,23070067,57063.70
Department of Health,Leicestershire Partnership NHS Trust,10/07/23,Crs_NHS_LT1y -Resus Inventory Supplied.,Balance Sheet Collection,SUPPLY CHAIN CO LTD,1124088894,42952.34
Department of Health,Leicestershire Partnership NHS Trust,10/07/23,Healthcare Services / Recharges from Non-NHS Bodies,Medical Trainees,UNIVERSITY OF LEICESTER,2230126000,148856.75
Department of Health,Leicestershire Partnership NHS Trust,10/07/23,Healthcare Services / Recharges from Non-NHS Bodies,Medical Trainees,UNIVERSITY OF LEICESTER,2230126868,146096.00
Department of Health,Leicestershire Partnership NHS Trust,11/07/23,Nurse - Band 6 -Agency,AMH - Central Access Point,HCL NURSING,HNSI0001391,570.12
Department of Health,Leicestershire Partnership NHS Trust,11/07/23,Nurse - Band 6 -Agency,Adult County- East Leicester CMHT,HCL NURSING,HNSI0001391,1092.21
Department of Health,Leicestershire Partnership NHS Trust,11/07/23,NURSE - BAND 2 - AGENCY,Agnes Unit,HCL NURSING,HNSI0001391,18209.90
Department of Health,Leicestershire Partnership NHS Trust,11/07/23,NURSE - BAND 5 - AGENCY,Agnes Unit,HCL NURSING,HNSI0001391,18732.50
Department of Health,Leicestershire Partnership NHS Trust,11/07/23,Nurse - Band 7 - Agency,Agnes Unit,HCL NURSING,HNSI0001391,2066.78
Department of Health,Leicestershire Partnership NHS Trust,11/07/23,NURSE - BAND 2 - AGENCY,Ashby Ward (Bradgate Unit),HCL NURSING,HNSI0001391,2893.52
Department of Health,Leicestershire Partnership NHS Trust,11/07/23,NURSE - BAND 5 - AGENCY,Ashby Ward (Bradgate Unit),HCL NURSING,HNSI0001391,9593.74
Department of Health,Leicestershire Partnership NHS Trust,11/07/23,NURSE - BAND 2 - AGENCY,Aston Ward Bradgate Unit (Prev Welford),HCL NURSING,HNSI0001391,706.59
Department of Health,Leicestershire Partnership NHS Trust,11/07/23,NURSE - BAND 5 - AGENCY,Aston Ward Bradgate Unit (Prev Welford),HCL NURSING,HNSI0001391,1522.26
Department of Health,Leicestershire Partnership NHS Trust,11/07/23,NURSE - BAND 2 - AGENCY,Beaumont Ward - Bradgate Unit,HCL NURSING,HNSI0001391,3315.46
Department of Health,Leicestershire Partnership NHS Trust,11/07/23,NURSE - BAND 5 - AGENCY,Beaumont Ward - Bradgate Unit,HCL NURSING,HNSI0001391,9774.50
Department of Health,Leicestershire Partnership NHS Trust,11/07/23,NURSE - BAND 2 - AGENCY,Belvoir Psychiatric Intensive Care Unit,HCL NURSING,HNSI0001391,4485.13
Department of Health,Leicestershire Partnership NHS Trust,11/07/23,NURSE - BAND 5 - AGENCY,Belvoir Psychiatric Intensive Care Unit,HCL NURSING,HNSI0001391,4318.99
Department of Health,Leicestershire Partnership NHS Trust,11/07/23,NURSE - BAND 2 - AGENCY,Bosworth Ward - Bradgate Unit,HCL NURSING,HNSI0001391,1815.33
Department of Health,Leicestershire Partnership NHS Trust,11/07/23,NURSE - BAND 5 - AGENCY,Bosworth Ward - Bradgate Unit,HCL NURSING,HNSI0001391,2283.93
Department of Health,Leicestershire Partnership NHS Trust,11/07/23,NURSE - BAND 2 - AGENCY,Cedar (Willows),HCL NURSING,HNSI0001391,409.08
Department of Health,Leicestershire Partnership NHS Trust,11/07/23,NURSE - BAND 5 - AGENCY,Cedar (Willows),HCL NURSING,HNSI0001391,1214.56
Department of Health,Leicestershire Partnership NHS Trust,11/07/23,Nurse - Band 6 -Agency,City West CMHT MHSOP,HCL NURSING,HNSI0001391,1046.25
Department of Health,Leicestershire Partnership NHS Trust,11/07/23,NURSE - BAND 2 - AGENCY,Coleman Ward,HCL NURSING,HNSI0001391,2130.12
Department of Health,Leicestershire Partnership NHS Trust,11/07/23,NURSE - BAND 5 - AGENCY,Coleman Ward,HCL NURSING,HNSI0001391,1770.50
Department of Health,Leicestershire Partnership NHS Trust,11/07/23,NURSE - BAND 5 - AGENCY,Crisis Resolution,HCL NURSING,HNSI0001391,880.95
Department of Health,Leicestershire Partnership NHS Trust,11/07/23,NURSE - BAND 2 - AGENCY,Griffin Ward (HPC),HCL NURSING,HNSI0001391,4454.40
Department of Health,Leicestershire Partnership NHS Trust,11/07/23,NURSE - BAND 5 - AGENCY,Griffin Ward (HPC),HCL NURSING,HNSI0001391,6969.16
Department of Health,Leicestershire Partnership NHS Trust,11/07/23,NURSE - BAND 2 - AGENCY,Gwendolen Ward,HCL NURSING,HNSI0001391,1387.00
Department of Health,Leicestershire Partnership NHS Trust,11/07/23,NURSE - BAND 5 - AGENCY,Gwendolen Ward,HCL NURSING,HNSI0001391,892.89
Department of Health,Leicestershire Partnership NHS Trust,11/07/23,NURSE - BAND 2 - AGENCY,Heather Ward,HCL NURSING,HNSI0001391,4006.76
Department of Health,Leicestershire Partnership NHS Trust,11/07/23,NURSE - BAND 5 - AGENCY,Heather Ward,HCL NURSING,HNSI0001391,5271.24
Department of Health,Leicestershire Partnership NHS Trust,11/07/23,NURSE - BAND 2 - AGENCY,Kirby Ward,HCL NURSING,HNSI0001391,6806.93
Department of Health,Leicestershire Partnership NHS Trust,11/07/23,NURSE - BAND 5 - AGENCY,Kirby Ward,HCL NURSING,HNSI0001391,283.64
Department of Health,Leicestershire Partnership NHS Trust,11/07/23,NURSE - BAND 2 - AGENCY,Maple Ward,HCL NURSING,HNSI0001391,501.61
Department of Health,Leicestershire Partnership NHS Trust,11/07/23,NURSE - BAND 5 - AGENCY,Maple Ward,HCL NURSING,HNSI0001391,2719.68
Department of Health,Leicestershire Partnership NHS Trust,11/07/23,Nurse - Band 6 -Agency,Mental Health Liaison Team,HCL NURSING,HNSI0001391,936.24
Department of Health,Leicestershire Partnership NHS Trust,11/07/23,NURSE - BAND 2 - AGENCY,Mill Lodge,HCL NURSING,HNSI0001391,1115.06
Department of Health,Leicestershire Partnership NHS Trust,11/07/23,NURSE - BAND 5 - AGENCY,Mill Lodge,HCL NURSING,HNSI0001391,995.91
Department of Health,Leicestershire Partnership NHS Trust,11/07/23,NURSE - BAND 2 - AGENCY,Phoenix Ward (HPC),HCL NURSING,HNSI0001391,722.74
Department of Health,Leicestershire Partnership NHS Trust,11/07/23,NURSE - BAND 5 - AGENCY,Phoenix Ward (HPC),HCL NURSING,HNSI0001391,6875.44
Department of Health,Leicestershire Partnership NHS Trust,11/07/23,NURSE - BAND 2 - AGENCY,Place Of Safety Assessment Unit,HCL NURSING,HNSI0001391,1663.09
Department of Health,Leicestershire Partnership NHS Trust,11/07/23,NURSE - BAND 5 - AGENCY,Place Of Safety Assessment Unit,HCL NURSING,HNSI0001391,2422.41
Department of Health,Leicestershire Partnership NHS Trust,11/07/23,NURSE - BAND 2 - AGENCY,Stewart House,HCL NURSING,HNSI0001391,261.44
Department of Health,Leicestershire Partnership NHS Trust,11/07/23,NURSE - BAND 2 - AGENCY,Sycamore (Willows),HCL NURSING,HNSI0001391,1838.94
Department of Health,Leicestershire Partnership NHS Trust,11/07/23,NURSE - BAND 5 - AGENCY,Sycamore (Willows),HCL NURSING,HNSI0001391,493.45
Department of Health,Leicestershire Partnership NHS Trust,11/07/23,NURSE - BAND 2 - AGENCY,Thornton Ward - Bradgate Unit,HCL NURSING,HNSI0001391,778.68
Department of Health,Leicestershire Partnership NHS Trust,11/07/23,NURSE - BAND 5 - AGENCY,Thornton Ward - Bradgate Unit,HCL NURSING,HNSI0001391,4829.04
Department of Health,Leicestershire Partnership NHS Trust,11/07/23,Nurse - Band 6 -Agency,CAMHS Waiting List Monies,HCL WORKFORCE SOLUTIONS,HWSI0001819,15160.47
Department of Health,Leicestershire Partnership NHS Trust,11/07/23,Nurse - Band 6 -Agency,Crisis Response and Home Treatment,HCL WORKFORCE SOLUTIONS,HWSI0001819,10923.13
Department of Health,Leicestershire Partnership NHS Trust,11/07/23,Services / Recharges from NHS Trusts,Inter Unit I & E Distribution,UHL NHS TRUST (RWE),L0272121,93376.76
Department of Health,Leicestershire Partnership NHS Trust,12/07/23,Insurance Costs,Chief Executives Office,NHS LITIGATION AUTHORITY,SICX412760,226283.80
Department of Health,Leicestershire Partnership NHS Trust,12/07/23,Healthcare Services / Recharges from Non-NHS Bodies,Adult Eating Disorder Collaborative,CYGNET HC LTD,EMED013INV,30548.10
Department of Health,Leicestershire Partnership NHS Trust,13/07/23,Payroll Deductions -NEST EES Pensions,Balance Sheet Collection,NEST,P03DEDS-313-23/24,24282.02
Department of Health,Leicestershire Partnership NHS Trust,13/07/23,Payroll Deductions -NEST ERS Pensions,Balance Sheet Collection,NEST,P03DEDS-313-23/24,18197.27
Department of Health,Leicestershire Partnership NHS Trust,13/07/23,Tax/SS Crs-LT1y-Deduction-Ers P11D,Balance Sheet Collection,H M REVENUE & CUSTOMS (IRT813),267PK001110872313A,96681.57
Department of Health,Leicestershire Partnership NHS Trust,14/07/23,Building & Engineering Equipment Equipment/Materials,Estates & Maintenance Team,ACORN MECHANICAL PIPEWORK SERVICES,966697,18584.18
Department of Health,Leicestershire Partnership NHS Trust,14/07/23,Building & Engineering Equipment Maintenance / Repairs,Estates & Maintenance Team,ACORN MECHANICAL PIPEWORK SERVICES,966697,15349.16
Department of Health,Leicestershire Partnership NHS Trust,14/07/23,Healthcare Services / Recharges from Non-NHS Bodies,Adult Eating Disorder Collaborative,ELLERN MEDE MOORGATE,OTM0639,36000.00
Department of Health,Leicestershire Partnership NHS Trust,14/07/23,Lease Rents (IFRS16),NSPCC Training Cente,NSPCC,120596,30278.51
Department of Health,Leicestershire Partnership NHS Trust,14/07/23,Healthcare Services / Recharges from Non-NHS Bodies,Adult Eating Disorder Collaborative,ELLERN MEDE MOORGATE,OTM0698,36000.00
Department of Health,Leicestershire Partnership NHS Trust,14/07/23,Medical Equipment Repairs / Maintenance,Medical Devices Maintenance (LPT),AVENSYS UK LTD,31196,45021.29
Department of Health,Leicestershire Partnership NHS Trust,14/07/23,Nurse - Band 6 -Agency,AMH - Central Access Point,HCL NURSING,HNSI0001402,1967.66
Department of Health,Leicestershire Partnership NHS Trust,14/07/23,Nurse - Band 7 - Agency,Adult County- East Leicester CMHT,HCL NURSING,HNSI0001402,2094.70
Department of Health,Leicestershire Partnership NHS Trust,14/07/23,NURSE - BAND 2 - AGENCY,Agnes Unit,HCL NURSING,HNSI0001402,32291.78
Department of Health,Leicestershire Partnership NHS Trust,14/07/23,NURSE - BAND 5 - AGENCY,Agnes Unit,HCL NURSING,HNSI0001402,25332.65
Department of Health,Leicestershire Partnership NHS Trust,14/07/23,Nurse - Band 7 - Agency,Agnes Unit,HCL NURSING,HNSI0001402,1702.24
Department of Health,Leicestershire Partnership NHS Trust,14/07/23,NURSE - BAND 2 - AGENCY,Ashby Ward (Bradgate Unit),HCL NURSING,HNSI0001402,1570.93
Department of Health,Leicestershire Partnership NHS Trust,14/07/23,NURSE - BAND 5 - AGENCY,Ashby Ward (Bradgate Unit),HCL NURSING,HNSI0001402,7803.09
Department of Health,Leicestershire Partnership NHS Trust,14/07/23,NURSE - BAND 2 - AGENCY,Aston Ward Bradgate Unit (Prev Welford),HCL NURSING,HNSI0001402,1888.14
Department of Health,Leicestershire Partnership NHS Trust,14/07/23,NURSE - BAND 2 - AGENCY,Beaumont Ward - Bradgate Unit,HCL NURSING,HNSI0001402,4272.76
Department of Health,Leicestershire Partnership NHS Trust,14/07/23,NURSE - BAND 5 - AGENCY,Beaumont Ward - Bradgate Unit,HCL NURSING,HNSI0001402,8714.42
Department of Health,Leicestershire Partnership NHS Trust,14/07/23,NURSE - BAND 2 - AGENCY,Belvoir Psychiatric Intensive Care Unit,HCL NURSING,HNSI0001402,4604.77
Department of Health,Leicestershire Partnership NHS Trust,14/07/23,NURSE - BAND 5 - AGENCY,Belvoir Psychiatric Intensive Care Unit,HCL NURSING,HNSI0001402,3425.19
Department of Health,Leicestershire Partnership NHS Trust,14/07/23,NURSE - BAND 2 - AGENCY,Bosworth Ward - Bradgate Unit,HCL NURSING,HNSI0001402,936.88
Department of Health,Leicestershire Partnership NHS Trust,14/07/23,NURSE - BAND 5 - AGENCY,Bosworth Ward - Bradgate Unit,HCL NURSING,HNSI0001402,2697.84
Department of Health,Leicestershire Partnership NHS Trust,14/07/23,NURSE - BAND 2 - AGENCY,Cedar (Willows),HCL NURSING,HNSI0001402,386.27
Department of Health,Leicestershire Partnership NHS Trust,14/07/23,NURSE - BAND 5 - AGENCY,Cedar (Willows),HCL NURSING,HNSI0001402,687.46
Department of Health,Leicestershire Partnership NHS Trust,14/07/23,Nurse - Band 6 -Agency,City West CMHT MHSOP,HCL NURSING,HNSI0001402,1046.25
Department of Health,Leicestershire Partnership NHS Trust,14/07/23,NURSE - BAND 2 - AGENCY,Coleman Ward,HCL NURSING,HNSI0001402,2952.97
Department of Health,Leicestershire Partnership NHS Trust,14/07/23,NURSE - BAND 5 - AGENCY,Coleman Ward,HCL NURSING,HNSI0001402,5678.89
Department of Health,Leicestershire Partnership NHS Trust,14/07/23,NURSE - BAND 5 - AGENCY,Crisis Resolution,HCL NURSING,HNSI0001402,880.95
Department of Health,Leicestershire Partnership NHS Trust,14/07/23,NURSE - BAND 2 - AGENCY,Griffin Ward (HPC),HCL NURSING,HNSI0001402,5018.59
Department of Health,Leicestershire Partnership NHS Trust,14/07/23,NURSE - BAND 5 - AGENCY,Griffin Ward (HPC),HCL NURSING,HNSI0001402,7039.00
Department of Health,Leicestershire Partnership NHS Trust,14/07/23,NURSE - BAND 2 - AGENCY,Gwendolen Ward,HCL NURSING,HNSI0001402,1060.77
Department of Health,Leicestershire Partnership NHS Trust,14/07/23,NURSE - BAND 5 - AGENCY,Gwendolen Ward,HCL NURSING,HNSI0001402,2480.72
Department of Health,Leicestershire Partnership NHS Trust,14/07/23,NURSE - BAND 2 - AGENCY,Heather Ward,HCL NURSING,HNSI0001402,1197.79
Department of Health,Leicestershire Partnership NHS Trust,14/07/23,NURSE - BAND 5 - AGENCY,Heather Ward,HCL NURSING,HNSI0001402,5169.41
Department of Health,Leicestershire Partnership NHS Trust,14/07/23,NURSE - BAND 2 - AGENCY,Kirby Ward,HCL NURSING,HNSI0001402,3871.15
Department of Health,Leicestershire Partnership NHS Trust,14/07/23,NURSE - BAND 5 - AGENCY,Kirby Ward,HCL NURSING,HNSI0001402,2391.37
Department of Health,Leicestershire Partnership NHS Trust,14/07/23,NURSE - BAND 2 - AGENCY,Maple Ward,HCL NURSING,HNSI0001402,667.82
Department of Health,Leicestershire Partnership NHS Trust,14/07/23,NURSE - BAND 5 - AGENCY,Maple Ward,HCL NURSING,HNSI0001402,1500.11
Department of Health,Leicestershire Partnership NHS Trust,14/07/23,Nurse - Band 6 -Agency,Mental Health Liaison Team,HCL NURSING,HNSI0001402,1365.31
Department of Health,Leicestershire Partnership NHS Trust,14/07/23,NURSE - BAND 2 - AGENCY,Mill Lodge,HCL NURSING,HNSI0001402,1708.72
Department of Health,Leicestershire Partnership NHS Trust,14/07/23,NURSE - BAND 5 - AGENCY,Mill Lodge,HCL NURSING,HNSI0001402,3617.04
Department of Health,Leicestershire Partnership NHS Trust,14/07/23,NURSE - BAND 2 - AGENCY,Phoenix Ward (HPC),HCL NURSING,HNSI0001402,3795.35
Department of Health,Leicestershire Partnership NHS Trust,14/07/23,NURSE - BAND 5 - AGENCY,Phoenix Ward (HPC),HCL NURSING,HNSI0001402,3889.11
Department of Health,Leicestershire Partnership NHS Trust,14/07/23,NURSE - BAND 2 - AGENCY,Place Of Safety Assessment Unit,HCL NURSING,HNSI0001402,1150.85
Department of Health,Leicestershire Partnership NHS Trust,14/07/23,NURSE - BAND 5 - AGENCY,Place Of Safety Assessment Unit,HCL NURSING,HNSI0001402,5940.57
Department of Health,Leicestershire Partnership NHS Trust,14/07/23,NURSE - BAND 5 - AGENCY,Stewart House,HCL NURSING,HNSI0001402,877.70
Department of Health,Leicestershire Partnership NHS Trust,14/07/23,NURSE - BAND 2 - AGENCY,Sycamore (Willows),HCL NURSING,HNSI0001402,1091.20
Department of Health,Leicestershire Partnership NHS Trust,14/07/23,NURSE - BAND 5 - AGENCY,Sycamore (Willows),HCL NURSING,HNSI0001402,930.93
Department of Health,Leicestershire Partnership NHS Trust,14/07/23,NURSE - BAND 2 - AGENCY,Thornton Ward - Bradgate Unit,HCL NURSING,HNSI0001402,1232.24
Department of Health,Leicestershire Partnership NHS Trust,14/07/23,NURSE - BAND 5 - AGENCY,Thornton Ward - Bradgate Unit,HCL NURSING,HNSI0001402,3035.03
Department of Health,Leicestershire Partnership NHS Trust,17/07/23,NURSE - BAND 2 - AGENCY,Beechwood Ward,HCL NURSING,HNSI0001403,5927.00
Department of Health,Leicestershire Partnership NHS Trust,17/07/23,NURSE - BAND 5 - AGENCY,Beechwood Ward,HCL NURSING,HNSI0001403,2401.49
Department of Health,Leicestershire Partnership NHS Trust,17/07/23,NURSE - BAND 2 - AGENCY,CHS Surge Ward,HCL NURSING,HNSI0001403,10412.75
Department of Health,Leicestershire Partnership NHS Trust,17/07/23,NURSE - BAND 5 - AGENCY,CHS Surge Ward,HCL NURSING,HNSI0001403,11116.41
Department of Health,Leicestershire Partnership NHS Trust,17/07/23,NURSE - BAND 5 - AGENCY,City Planned Care - East,HCL NURSING,HNSI0001403,17933.82
Department of Health,Leicestershire Partnership NHS Trust,17/07/23,NURSE - BAND 5 - AGENCY,City Planned Care - West,HCL NURSING,HNSI0001403,12851.89
Department of Health,Leicestershire Partnership NHS Trust,17/07/23,NURSE - BAND 2 - AGENCY,Clarendon Ward,HCL NURSING,HNSI0001403,8644.35
Department of Health,Leicestershire Partnership NHS Trust,17/07/23,NURSE - BAND 5 - AGENCY,Clarendon Ward,HCL NURSING,HNSI0001403,974.07
Department of Health,Leicestershire Partnership NHS Trust,17/07/23,NURSE - BAND 2 - AGENCY,Coalville Snibston Ward,HCL NURSING,HNSI0001403,6112.67
Department of Health,Leicestershire Partnership NHS Trust,17/07/23,NURSE - BAND 5 - AGENCY,Coalville Snibston Ward,HCL NURSING,HNSI0001403,2316.00
Department of Health,Leicestershire Partnership NHS Trust,17/07/23,NURSE - BAND 2 - AGENCY,Coalville Ward 2,HCL NURSING,HNSI0001403,5662.79
Department of Health,Leicestershire Partnership NHS Trust,17/07/23,NURSE - BAND 5 - AGENCY,Coalville Ward 2,HCL NURSING,HNSI0001403,2605.24
Department of Health,Leicestershire Partnership NHS Trust,17/07/23,NURSE - BAND 2 - AGENCY,Dalgliesh Ward,HCL NURSING,HNSI0001403,9121.53
Department of Health,Leicestershire Partnership NHS Trust,17/07/23,NURSE - BAND 5 - AGENCY,Dalgliesh Ward,HCL NURSING,HNSI0001403,4944.40
Department of Health,Leicestershire Partnership NHS Trust,17/07/23,NURSE - BAND 5 - AGENCY,"East Planned Care - Melton,Syston,Rutland",HCL NURSING,HNSI0001403,2244.28
Department of Health,Leicestershire Partnership NHS Trust,17/07/23,NURSE - BAND 5 - AGENCY,"East Planned Care - Oadby,Wigston & Harborough",HCL NURSING,HNSI0001403,2501.38
Department of Health,Leicestershire Partnership NHS Trust,17/07/23,NURSE - BAND 2 - AGENCY,H&B Comm Hosp East Ward,HCL NURSING,HNSI0001403,3164.82
Department of Health,Leicestershire Partnership NHS Trust,17/07/23,NURSE - BAND 5 - AGENCY,H&B Comm Hosp East Ward,HCL NURSING,HNSI0001403,5054.97
Department of Health,Leicestershire Partnership NHS Trust,17/07/23,NURSE - BAND 2 - AGENCY,H&B Comm Hosp North Ward,HCL NURSING,HNSI0001403,1259.20
Department of Health,Leicestershire Partnership NHS Trust,17/07/23,NURSE - BAND 5 - AGENCY,H&B Comm Hosp North Ward,HCL NURSING,HNSI0001403,4441.02
Department of Health,Leicestershire Partnership NHS Trust,17/07/23,NURSE - BAND 2 - AGENCY,Lough Swithland Ward,HCL NURSING,HNSI0001403,1744.34
Department of Health,Leicestershire Partnership NHS Trust,17/07/23,NURSE - BAND 5 - AGENCY,Lough Swithland Ward,HCL NURSING,HNSI0001403,2502.09
Department of Health,Leicestershire Partnership NHS Trust,17/07/23,NURSE - BAND 2 - AGENCY,Rutland Ward Nursing,HCL NURSING,HNSI0001403,1989.02
Department of Health,Leicestershire Partnership NHS Trust,17/07/23,NURSE - BAND 5 - AGENCY,Rutland Ward Nursing,HCL NURSING,HNSI0001403,3475.72
Department of Health,Leicestershire Partnership NHS Trust,17/07/23,NURSE - BAND 2 - AGENCY,St Lukes Stroke Ward,HCL NURSING,HNSI0001403,5434.07
Department of Health,Leicestershire Partnership NHS Trust,17/07/23,NURSE - BAND 5 - AGENCY,St Lukes Stroke Ward,HCL NURSING,HNSI0001403,2171.63
Department of Health,Leicestershire Partnership NHS Trust,17/07/23,NURSE - BAND 2 - AGENCY,St Lukes Ward 3,HCL NURSING,HNSI0001403,2883.42
Department of Health,Leicestershire Partnership NHS Trust,17/07/23,NURSE - BAND 5 - AGENCY,St Lukes Ward 3,HCL NURSING,HNSI0001403,1598.06
Department of Health,Leicestershire Partnership NHS Trust,17/07/23,NURSE - BAND 5 - AGENCY,West Planned Care  - Charnwood Hub,HCL NURSING,HNSI0001403,1390.08
Department of Health,Leicestershire Partnership NHS Trust,17/07/23,NURSE - BAND 5 - AGENCY,West Planned Care  - Hinckley Hub,HCL NURSING,HNSI0001403,725.91
Department of Health,Leicestershire Partnership NHS Trust,17/07/23,NURSE - BAND 2 - AGENCY,Beechwood Ward,HCL NURSING,HNSI0001392,6841.93
Department of Health,Leicestershire Partnership NHS Trust,17/07/23,NURSE - BAND 5 - AGENCY,Beechwood Ward,HCL NURSING,HNSI0001392,4038.59
Department of Health,Leicestershire Partnership NHS Trust,17/07/23,NURSE - BAND 2 - AGENCY,CHS Surge Ward,HCL NURSING,HNSI0001392,11780.40
Department of Health,Leicestershire Partnership NHS Trust,17/07/23,NURSE - BAND 5 - AGENCY,CHS Surge Ward,HCL NURSING,HNSI0001392,10142.23
Department of Health,Leicestershire Partnership NHS Trust,17/07/23,NURSE - BAND 5 - AGENCY,City Planned Care - East,HCL NURSING,HNSI0001392,19806.88
Department of Health,Leicestershire Partnership NHS Trust,17/07/23,NURSE - BAND 5 - AGENCY,City Planned Care - West,HCL NURSING,HNSI0001392,13058.36
Department of Health,Leicestershire Partnership NHS Trust,17/07/23,NURSE - BAND 2 - AGENCY,Clarendon Ward,HCL NURSING,HNSI0001392,10330.96
Department of Health,Leicestershire Partnership NHS Trust,17/07/23,NURSE - BAND 5 - AGENCY,Clarendon Ward,HCL NURSING,HNSI0001392,899.08
Department of Health,Leicestershire Partnership NHS Trust,17/07/23,NURSE - BAND 2 - AGENCY,Coalville Snibston Ward,HCL NURSING,HNSI0001392,5152.01
Department of Health,Leicestershire Partnership NHS Trust,17/07/23,NURSE - BAND 5 - AGENCY,Coalville Snibston Ward,HCL NURSING,HNSI0001392,2211.30
Department of Health,Leicestershire Partnership NHS Trust,17/07/23,NURSE - BAND 2 - AGENCY,Coalville Ward 2,HCL NURSING,HNSI0001392,2971.19
Department of Health,Leicestershire Partnership NHS Trust,17/07/23,NURSE - BAND 5 - AGENCY,Coalville Ward 2,HCL NURSING,HNSI0001392,998.85
Department of Health,Leicestershire Partnership NHS Trust,17/07/23,NURSE - BAND 2 - AGENCY,Dalgliesh Ward,HCL NURSING,HNSI0001392,4964.41
Department of Health,Leicestershire Partnership NHS Trust,17/07/23,NURSE - BAND 5 - AGENCY,Dalgliesh Ward,HCL NURSING,HNSI0001392,5054.76
Department of Health,Leicestershire Partnership NHS Trust,17/07/23,NURSE - BAND 5 - AGENCY,East Planned Care - Blaby/Lutterworth,HCL NURSING,HNSI0001392,1297.63
Department of Health,Leicestershire Partnership NHS Trust,17/07/23,NURSE - BAND 5 - AGENCY,"East Planned Care - Melton,Syston,Rutland",HCL NURSING,HNSI0001392,4044.84
Department of Health,Leicestershire Partnership NHS Trust,17/07/23,NURSE - BAND 5 - AGENCY,"East Planned Care - Oadby,Wigston & Harborough",HCL NURSING,HNSI0001392,5066.28
Department of Health,Leicestershire Partnership NHS Trust,17/07/23,NURSE - BAND 2 - AGENCY,H&B Comm Hosp East Ward,HCL NURSING,HNSI0001392,2710.08
Department of Health,Leicestershire Partnership NHS Trust,17/07/23,NURSE - BAND 5 - AGENCY,H&B Comm Hosp East Ward,HCL NURSING,HNSI0001392,3420.60
Department of Health,Leicestershire Partnership NHS Trust,17/07/23,NURSE - BAND 2 - AGENCY,H&B Comm Hosp North Ward,HCL NURSING,HNSI0001392,2156.25
Department of Health,Leicestershire Partnership NHS Trust,17/07/23,NURSE - BAND 5 - AGENCY,H&B Comm Hosp North Ward,HCL NURSING,HNSI0001392,3130.08
Department of Health,Leicestershire Partnership NHS Trust,17/07/23,NURSE - BAND 2 - AGENCY,Lough Swithland Ward,HCL NURSING,HNSI0001392,4280.86
Department of Health,Leicestershire Partnership NHS Trust,17/07/23,NURSE - BAND 5 - AGENCY,Lough Swithland Ward,HCL NURSING,HNSI0001392,1947.96
Department of Health,Leicestershire Partnership NHS Trust,17/07/23,NURSE - BAND 5 - AGENCY,Non Recurrent 2012/13,HCL NURSING,HNSI0001392,4467.81
Department of Health,Leicestershire Partnership NHS Trust,17/07/23,NURSE - BAND 2 - AGENCY,Rutland Ward Nursing,HCL NURSING,HNSI0001392,2119.93
Department of Health,Leicestershire Partnership NHS Trust,17/07/23,NURSE - BAND 5 - AGENCY,Rutland Ward Nursing,HCL NURSING,HNSI0001392,2805.52
Department of Health,Leicestershire Partnership NHS Trust,17/07/23,NURSE - BAND 2 - AGENCY,St Lukes Stroke Ward,HCL NURSING,HNSI0001392,4475.33
Department of Health,Leicestershire Partnership NHS Trust,17/07/23,NURSE - BAND 5 - AGENCY,St Lukes Stroke Ward,HCL NURSING,HNSI0001392,1549.73
Department of Health,Leicestershire Partnership NHS Trust,17/07/23,NURSE - BAND 2 - AGENCY,St Lukes Ward 3,HCL NURSING,HNSI0001392,2545.46
Department of Health,Leicestershire Partnership NHS Trust,17/07/23,NURSE - BAND 5 - AGENCY,St Lukes Ward 3,HCL NURSING,HNSI0001392,2369.17
Department of Health,Leicestershire Partnership NHS Trust,17/07/23,NURSE - BAND 5 - AGENCY,West Planned Care  - Charnwood Hub,HCL NURSING,HNSI0001392,632.07
Department of Health,Leicestershire Partnership NHS Trust,17/07/23,NURSE - BAND 5 - AGENCY,West Planned Care  - Hinckley Hub,HCL NURSING,HNSI0001392,757.65
Department of Health,Leicestershire Partnership NHS Trust,17/07/23,Computer Software,360 Assurance - Internal Audit,IDEAGEN GAEL LTD,SIEK19880,16683.60
Department of Health,Leicestershire Partnership NHS Trust,17/07/23,External Consultancy Fees,360 Assurance - Internal Audit,IDEAGEN GAEL LTD,SIEK19880,13724.40
Department of Health,Leicestershire Partnership NHS Trust,17/07/23,Non Pay Reserves,Unallocated Budgets,NOTT UNI HOSP NHS TRUST (RX1),2000129111,80000.00
Department of Health,Leicestershire Partnership NHS Trust,18/07/23,Drugs,Adult City Drugs,POLAR SPEED THERMOLOGISTICS,0001130560,14375.75
Department of Health,Leicestershire Partnership NHS Trust,18/07/23,Drugs,Adult County Drugs,POLAR SPEED THERMOLOGISTICS,0001130560,21563.63
Department of Health,Leicestershire Partnership NHS Trust,18/07/23,Drugs,Adult City Drugs,POLAR SPEED THERMOLOGISTICS,0001141942,13732.78
Department of Health,Leicestershire Partnership NHS Trust,18/07/23,Drugs,Adult County Drugs,POLAR SPEED THERMOLOGISTICS,0001141942,20599.18
Department of Health,Leicestershire Partnership NHS Trust,19/07/23,Services / Recharges from Other NHS Bodies,AED Step up Service,NORTHAMPTONSHIRE HC NHS FT (RP1),5154117,25087.00
Department of Health,Leicestershire Partnership NHS Trust,19/07/23,Computer Software,Learning & Develpoment,THINK ASSOCIATES LTD,X-3085,40219.20
Department of Health,Leicestershire Partnership NHS Trust,19/07/23,Services / Recharges from NHS Trusts,Inter Unit I & E Distribution,UHL NHS TRUST (RWE),L0272248,43193.46
Department of Health,Leicestershire Partnership NHS Trust,19/07/23,Services / Recharges from NHS Trusts,Inter Unit I & E Distribution,UHL NHS TRUST (RWE),L0272249,26677.81
Department of Health,Leicestershire Partnership NHS Trust,19/07/23,Mobile Telephone Rental / Calls,Specific Unit Budget Reserves,VODAFONE CORPORATE LTD,JULY2023,70317.67
Department of Health,Leicestershire Partnership NHS Trust,20/07/23,Trade_Drs_LT1y -Miscellaneous receipts,Balance Sheet Collection,URGENT PAYMENTS,REFUNDL0271764,42095.00
Department of Health,Leicestershire Partnership NHS Trust,21/07/23,NURSE - BAND 2 - AGENCY,Beechwood Ward,HCL NURSING,HNSI0001407,7092.97
Department of Health,Leicestershire Partnership NHS Trust,21/07/23,NURSE - BAND 5 - AGENCY,Beechwood Ward,HCL NURSING,HNSI0001407,3819.02
Department of Health,Leicestershire Partnership NHS Trust,21/07/23,NURSE - BAND 2 - AGENCY,CHS Surge Ward,HCL NURSING,HNSI0001407,9801.13
Department of Health,Leicestershire Partnership NHS Trust,21/07/23,NURSE - BAND 5 - AGENCY,CHS Surge Ward,HCL NURSING,HNSI0001407,7959.42
Department of Health,Leicestershire Partnership NHS Trust,21/07/23,NURSE - BAND 5 - AGENCY,City Planned Care - East,HCL NURSING,HNSI0001407,15436.61
Department of Health,Leicestershire Partnership NHS Trust,21/07/23,NURSE - BAND 5 - AGENCY,City Planned Care - West,HCL NURSING,HNSI0001407,19758.60
Department of Health,Leicestershire Partnership NHS Trust,21/07/23,NURSE - BAND 2 - AGENCY,Clarendon Ward,HCL NURSING,HNSI0001407,8094.62
Department of Health,Leicestershire Partnership NHS Trust,21/07/23,NURSE - BAND 5 - AGENCY,Clarendon Ward,HCL NURSING,HNSI0001407,603.33
Department of Health,Leicestershire Partnership NHS Trust,21/07/23,NURSE - BAND 2 - AGENCY,Coalville Snibston Ward,HCL NURSING,HNSI0001407,4206.46
Department of Health,Leicestershire Partnership NHS Trust,21/07/23,NURSE - BAND 2 - AGENCY,Coalville Ward 2,HCL NURSING,HNSI0001407,4843.25
Department of Health,Leicestershire Partnership NHS Trust,21/07/23,NURSE - BAND 5 - AGENCY,Coalville Ward 2,HCL NURSING,HNSI0001407,1405.80
Department of Health,Leicestershire Partnership NHS Trust,21/07/23,NURSE - BAND 2 - AGENCY,Dalgliesh Ward,HCL NURSING,HNSI0001407,6441.11
Department of Health,Leicestershire Partnership NHS Trust,21/07/23,NURSE - BAND 5 - AGENCY,Dalgliesh Ward,HCL NURSING,HNSI0001407,4187.36
Department of Health,Leicestershire Partnership NHS Trust,21/07/23,NURSE - BAND 5 - AGENCY,"East Planned Care - Melton,Syston,Rutland",HCL NURSING,HNSI0001407,3316.75
Department of Health,Leicestershire Partnership NHS Trust,21/07/23,NURSE - BAND 2 - AGENCY,H&B Comm Hosp East Ward,HCL NURSING,HNSI0001407,5441.53
Department of Health,Leicestershire Partnership NHS Trust,21/07/23,NURSE - BAND 5 - AGENCY,H&B Comm Hosp East Ward,HCL NURSING,HNSI0001407,5297.22
Department of Health,Leicestershire Partnership NHS Trust,21/07/23,NURSE - BAND 2 - AGENCY,H&B Comm Hosp North Ward,HCL NURSING,HNSI0001407,1577.26
Department of Health,Leicestershire Partnership NHS Trust,21/07/23,NURSE - BAND 5 - AGENCY,H&B Comm Hosp North Ward,HCL NURSING,HNSI0001407,3756.74
Department of Health,Leicestershire Partnership NHS Trust,21/07/23,NURSE - BAND 2 - AGENCY,Lough Swithland Ward,HCL NURSING,HNSI0001407,2328.60
Department of Health,Leicestershire Partnership NHS Trust,21/07/23,NURSE - BAND 5 - AGENCY,Lough Swithland Ward,HCL NURSING,HNSI0001407,1920.71
Department of Health,Leicestershire Partnership NHS Trust,21/07/23,NURSE - BAND 2 - AGENCY,Rutland Ward Nursing,HCL NURSING,HNSI0001407,3941.00
Department of Health,Leicestershire Partnership NHS Trust,21/07/23,NURSE - BAND 5 - AGENCY,Rutland Ward Nursing,HCL NURSING,HNSI0001407,4604.31
Department of Health,Leicestershire Partnership NHS Trust,21/07/23,NURSE - BAND 2 - AGENCY,St Lukes Stroke Ward,HCL NURSING,HNSI0001407,4990.11
Department of Health,Leicestershire Partnership NHS Trust,21/07/23,NURSE - BAND 5 - AGENCY,St Lukes Stroke Ward,HCL NURSING,HNSI0001407,4720.88
Department of Health,Leicestershire Partnership NHS Trust,21/07/23,NURSE - BAND 2 - AGENCY,St Lukes Ward 3,HCL NURSING,HNSI0001407,3871.71
Department of Health,Leicestershire Partnership NHS Trust,21/07/23,NURSE - BAND 5 - AGENCY,St Lukes Ward 3,HCL NURSING,HNSI0001407,2572.19
Department of Health,Leicestershire Partnership NHS Trust,21/07/23,NURSE - BAND 5 - AGENCY,West Planned Care  - Charnwood Hub,HCL NURSING,HNSI0001407,1733.52
Department of Health,Leicestershire Partnership NHS Trust,21/07/23,NURSE - BAND 5 - AGENCY,West Planned Care  - Hinckley Hub,HCL NURSING,HNSI0001407,481.46
Department of Health,Leicestershire Partnership NHS Trust,24/07/23,Services / Recharges from NHS Trusts,Inter Unit I & E Distribution,UHL NHS TRUST (RWE),L0272405,34297.14
Department of Health,Leicestershire Partnership NHS Trust,24/07/23,Crs_NHS_LT1y -Resus Inventory Supplied.,Balance Sheet Collection,SUPPLY CHAIN CO LTD,1124097901,30983.92
Department of Health,Leicestershire Partnership NHS Trust,24/07/23,Crs_NHS_LT1y -Resus Inventory Supplied.,Balance Sheet Collection,SUPPLY CHAIN CO LTD,1124103167,32146.64
Department of Health,Leicestershire Partnership NHS Trust,24/07/23,Gas,"Beaumont Leys Health Centre (P94, LPT)",TOTAL GAS & POWER LTD,307608515/23,862.24
Department of Health,Leicestershire Partnership NHS Trust,24/07/23,Gas,"Bennion Centre (including Forest Grange Day Unit) (P8, LPT)",TOTAL GAS & POWER LTD,307608515/23,10612.73
Department of Health,Leicestershire Partnership NHS Trust,24/07/23,Gas,"Bradgate Unit (including Glenvale day Unit) (P7, LPT)",TOTAL GAS & POWER LTD,307608515/23,21707.20
Department of Health,Leicestershire Partnership NHS Trust,24/07/23,Gas,Bridge Park Plaza - First Floor (LPT),TOTAL GAS & POWER LTD,307608515/23,4397.36
Department of Health,Leicestershire Partnership NHS Trust,24/07/23,Gas,"Bridge Park Road - Units 2 and 3 (P148, LPT)",TOTAL GAS & POWER LTD,307608515/23,198.41
Department of Health,Leicestershire Partnership NHS Trust,24/07/23,Gas,"Coalville Community Hospital (P138, LPT)",TOTAL GAS & POWER LTD,307608515/23,10425.30
Department of Health,Leicestershire Partnership NHS Trust,24/07/23,Gas,"Coalville Health Centre (P121, LPT)",TOTAL GAS & POWER LTD,307608515/23,678.29
Department of Health,Leicestershire Partnership NHS Trust,24/07/23,Gas,"Evington Centre (P6, LPT)",TOTAL GAS & POWER LTD,307608515/23,1385.34
Department of Health,Leicestershire Partnership NHS Trust,24/07/23,Gas,"Farm Lodge (P34, LPT)",TOTAL GAS & POWER LTD,307608515/23,88.30
Department of Health,Leicestershire Partnership NHS Trust,24/07/23,Gas,"Feilding Palmer Hospital (Lutterworth) (P131, LPT)",TOTAL GAS & POWER LTD,307608515/23,2384.84
Department of Health,Leicestershire Partnership NHS Trust,24/07/23,Gas,"Frith Cottages 3 & 4 (P36, LPT)",TOTAL GAS & POWER LTD,307608515/23,152.40
Department of Health,Leicestershire Partnership NHS Trust,24/07/23,Gas,"Hawthorne Centre - Coalville (P14, LPT)",TOTAL GAS & POWER LTD,307608515/23,533.68
Department of Health,Leicestershire Partnership NHS Trust,24/07/23,Gas,"Hinckley and Bosworth Community Hospital (Sunnyside) (P133, LPT)",TOTAL GAS & POWER LTD,307608515/23,7388.45
Department of Health,Leicestershire Partnership NHS Trust,24/07/23,Gas,"Hynca Lodge (P33, LPT)",TOTAL GAS & POWER LTD,307608515/23,412.83
Department of Health,Leicestershire Partnership NHS Trust,24/07/23,Gas,"LGH - Gwendolen House (P4, LPT)",TOTAL GAS & POWER LTD,307608515/23,853.85
Department of Health,Leicestershire Partnership NHS Trust,24/07/23,Gas,"Loughborough Hospital (P136, LPT)",TOTAL GAS & POWER LTD,307608515/23,17082.12
Department of Health,Leicestershire Partnership NHS Trust,24/07/23,Gas,Mawson House (LPT),TOTAL GAS & POWER LTD,307608515/23,271.16
Department of Health,Leicestershire Partnership NHS Trust,24/07/23,Gas,"Mett Centre (P49, LPT)",TOTAL GAS & POWER LTD,307608515/23,361.68
Department of Health,Leicestershire Partnership NHS Trust,24/07/23,Gas,"Narborough Health Centre (P117, LPT)",TOTAL GAS & POWER LTD,307608515/23,451.70
Department of Health,Leicestershire Partnership NHS Trust,24/07/23,Gas,"Neville Centre - LGH (was DSC) (P147, LPT)",TOTAL GAS & POWER LTD,307608515/23,1061.92
Department of Health,Leicestershire Partnership NHS Trust,24/07/23,Gas,"OSL House (P54, LPT)",TOTAL GAS & POWER LTD,307608515/23,419.42
Department of Health,Leicestershire Partnership NHS Trust,24/07/23,Gas,"Orchard Resource Centre (P15, LPT)",TOTAL GAS & POWER LTD,307608515/23,305.08
Department of Health,Leicestershire Partnership NHS Trust,24/07/23,Gas,"Rutland Memorial Hospital (P134, LPT)",TOTAL GAS & POWER LTD,307608515/23,-1094.93
Department of Health,Leicestershire Partnership NHS Trust,24/07/23,Gas,"Shepshed Health Centre (P123, LPT)",TOTAL GAS & POWER LTD,307608515/23,637.79
Department of Health,Leicestershire Partnership NHS Trust,24/07/23,Gas,"Springfield Road Health Centre (P92, LPT)",TOTAL GAS & POWER LTD,307608515/23,384.78
Department of Health,Leicestershire Partnership NHS Trust,24/07/23,Gas,"Stewart House (P61, LPT)",TOTAL GAS & POWER LTD,307608515/23,3721.30
Department of Health,Leicestershire Partnership NHS Trust,24/07/23,Gas,"Swithland House - London Road 352 (P44, LPT)",TOTAL GAS & POWER LTD,307608515/23,972.56
Department of Health,Leicestershire Partnership NHS Trust,24/07/23,Gas,"The Agnes Unit (AKA Assessment and Treatment Centre) (P85, LPT)",TOTAL GAS & POWER LTD,307608515/23,5170.87
Department of Health,Leicestershire Partnership NHS Trust,24/07/23,Gas,The Beacon,TOTAL GAS & POWER LTD,307608515/23,1890.97
Department of Health,Leicestershire Partnership NHS Trust,24/07/23,Gas,"The Cedars (P19, LPT)",TOTAL GAS & POWER LTD,307608515/23,175.07
Department of Health,Leicestershire Partnership NHS Trust,24/07/23,Gas,"The Grange 1 (P4, LPT)",TOTAL GAS & POWER LTD,307608515/23,258.04
Department of Health,Leicestershire Partnership NHS Trust,24/07/23,Gas,"The Grange 2 (P41, LPT)",TOTAL GAS & POWER LTD,307608515/23,114.31
Department of Health,Leicestershire Partnership NHS Trust,24/07/23,Gas,"Valentine Centre (P3, LPT)",TOTAL GAS & POWER LTD,307608515/23,2431.73
Department of Health,Leicestershire Partnership NHS Trust,24/07/23,Gas,"Westcotes Group -Westcotes House (P78, LPT)",TOTAL GAS & POWER LTD,307608515/23,1291.51
Department of Health,Leicestershire Partnership NHS Trust,24/07/23,Gas,"Winstanley Drive Health Centre (P8, LPT)",TOTAL GAS & POWER LTD,307608515/23,633.89
Department of Health,Leicestershire Partnership NHS Trust,25/07/23,Nurse - Band 6 -Agency,AMH - Central Access Point,HCL NURSING,HNSI0001406,3524.54
Department of Health,Leicestershire Partnership NHS Trust,25/07/23,NURSE - BAND 2 - AGENCY,Agnes Unit,HCL NURSING,HNSI0001406,30420.67
Department of Health,Leicestershire Partnership NHS Trust,25/07/23,NURSE - BAND 5 - AGENCY,Agnes Unit,HCL NURSING,HNSI0001406,25708.40
Department of Health,Leicestershire Partnership NHS Trust,25/07/23,Nurse - Band 7 - Agency,Agnes Unit,HCL NURSING,HNSI0001406,1626.78
Department of Health,Leicestershire Partnership NHS Trust,25/07/23,NURSE - BAND 2 - AGENCY,Ashby Ward (Bradgate Unit),HCL NURSING,HNSI0001406,1732.52
Department of Health,Leicestershire Partnership NHS Trust,25/07/23,NURSE - BAND 5 - AGENCY,Ashby Ward (Bradgate Unit),HCL NURSING,HNSI0001406,8627.25
Department of Health,Leicestershire Partnership NHS Trust,25/07/23,NURSE - BAND 2 - AGENCY,Aston Ward Bradgate Unit (Prev Welford),HCL NURSING,HNSI0001406,3200.23
Department of Health,Leicestershire Partnership NHS Trust,25/07/23,NURSE - BAND 5 - AGENCY,Aston Ward Bradgate Unit (Prev Welford),HCL NURSING,HNSI0001406,2597.79
Department of Health,Leicestershire Partnership NHS Trust,25/07/23,NURSE - BAND 2 - AGENCY,Beaumont Ward - Bradgate Unit,HCL NURSING,HNSI0001406,2412.97
Department of Health,Leicestershire Partnership NHS Trust,25/07/23,NURSE - BAND 5 - AGENCY,Beaumont Ward - Bradgate Unit,HCL NURSING,HNSI0001406,10608.57
Department of Health,Leicestershire Partnership NHS Trust,25/07/23,NURSE - BAND 2 - AGENCY,Belvoir Psychiatric Intensive Care Unit,HCL NURSING,HNSI0001406,2319.86
Department of Health,Leicestershire Partnership NHS Trust,25/07/23,NURSE - BAND 5 - AGENCY,Belvoir Psychiatric Intensive Care Unit,HCL NURSING,HNSI0001406,2612.27
Department of Health,Leicestershire Partnership NHS Trust,25/07/23,NURSE - BAND 2 - AGENCY,Bosworth Ward - Bradgate Unit,HCL NURSING,HNSI0001406,861.53
Department of Health,Leicestershire Partnership NHS Trust,25/07/23,NURSE - BAND 5 - AGENCY,Bosworth Ward - Bradgate Unit,HCL NURSING,HNSI0001406,3774.63
Department of Health,Leicestershire Partnership NHS Trust,25/07/23,NURSE - BAND 2 - AGENCY,Cedar (Willows),HCL NURSING,HNSI0001406,881.87
Department of Health,Leicestershire Partnership NHS Trust,25/07/23,NURSE - BAND 5 - AGENCY,Cedar (Willows),HCL NURSING,HNSI0001406,792.09
Department of Health,Leicestershire Partnership NHS Trust,25/07/23,Nurse - Band 6 -Agency,City West CMHT MHSOP,HCL NURSING,HNSI0001406,1046.25
Department of Health,Leicestershire Partnership NHS Trust,25/07/23,NURSE - BAND 2 - AGENCY,Coleman Ward,HCL NURSING,HNSI0001406,2590.14
Department of Health,Leicestershire Partnership NHS Trust,25/07/23,NURSE - BAND 5 - AGENCY,Coleman Ward,HCL NURSING,HNSI0001406,3696.05
Department of Health,Leicestershire Partnership NHS Trust,25/07/23,NURSE - BAND 5 - AGENCY,Crisis Resolution,HCL NURSING,HNSI0001406,1706.59
Department of Health,Leicestershire Partnership NHS Trust,25/07/23,NURSE - BAND 2 - AGENCY,Griffin Ward (HPC),HCL NURSING,HNSI0001406,3230.19
Department of Health,Leicestershire Partnership NHS Trust,25/07/23,NURSE - BAND 5 - AGENCY,Griffin Ward (HPC),HCL NURSING,HNSI0001406,6633.18
Department of Health,Leicestershire Partnership NHS Trust,25/07/23,NURSE - BAND 2 - AGENCY,Gwendolen Ward,HCL NURSING,HNSI0001406,1889.87
Department of Health,Leicestershire Partnership NHS Trust,25/07/23,NURSE - BAND 5 - AGENCY,Gwendolen Ward,HCL NURSING,HNSI0001406,1800.07
Department of Health,Leicestershire Partnership NHS Trust,25/07/23,NURSE - BAND 2 - AGENCY,Heather Ward,HCL NURSING,HNSI0001406,1084.81
Department of Health,Leicestershire Partnership NHS Trust,25/07/23,NURSE - BAND 5 - AGENCY,Heather Ward,HCL NURSING,HNSI0001406,4966.79
Department of Health,Leicestershire Partnership NHS Trust,25/07/23,NURSE - BAND 2 - AGENCY,Kirby Ward,HCL NURSING,HNSI0001406,4362.99
Department of Health,Leicestershire Partnership NHS Trust,25/07/23,NURSE - BAND 5 - AGENCY,Kirby Ward,HCL NURSING,HNSI0001406,950.27
Department of Health,Leicestershire Partnership NHS Trust,25/07/23,NURSE - BAND 2 - AGENCY,Maple Ward,HCL NURSING,HNSI0001406,411.68
Department of Health,Leicestershire Partnership NHS Trust,25/07/23,NURSE - BAND 5 - AGENCY,Maple Ward,HCL NURSING,HNSI0001406,1376.45
Department of Health,Leicestershire Partnership NHS Trust,25/07/23,Nurse - Band 6 -Agency,Mental Health Liaison Team,HCL NURSING,HNSI0001406,1377.87
Department of Health,Leicestershire Partnership NHS Trust,25/07/23,NURSE - BAND 2 - AGENCY,Mill Lodge,HCL NURSING,HNSI0001406,1458.72
Department of Health,Leicestershire Partnership NHS Trust,25/07/23,NURSE - BAND 5 - AGENCY,Mill Lodge,HCL NURSING,HNSI0001406,1489.36
Department of Health,Leicestershire Partnership NHS Trust,25/07/23,NURSE - BAND 2 - AGENCY,Phoenix Ward (HPC),HCL NURSING,HNSI0001406,933.11
Department of Health,Leicestershire Partnership NHS Trust,25/07/23,NURSE - BAND 5 - AGENCY,Phoenix Ward (HPC),HCL NURSING,HNSI0001406,4045.37
Department of Health,Leicestershire Partnership NHS Trust,25/07/23,NURSE - BAND 2 - AGENCY,Place Of Safety Assessment Unit,HCL NURSING,HNSI0001406,826.73
Department of Health,Leicestershire Partnership NHS Trust,25/07/23,NURSE - BAND 5 - AGENCY,Place Of Safety Assessment Unit,HCL NURSING,HNSI0001406,3979.82
Department of Health,Leicestershire Partnership NHS Trust,25/07/23,NURSE - BAND 2 - AGENCY,Sycamore (Willows),HCL NURSING,HNSI0001406,919.93
Department of Health,Leicestershire Partnership NHS Trust,25/07/23,NURSE - BAND 5 - AGENCY,Sycamore (Willows),HCL NURSING,HNSI0001406,2057.56
Department of Health,Leicestershire Partnership NHS Trust,25/07/23,NURSE - BAND 2 - AGENCY,Thornton Ward - Bradgate Unit,HCL NURSING,HNSI0001406,244.00
Department of Health,Leicestershire Partnership NHS Trust,25/07/23,NURSE - BAND 5 - AGENCY,Thornton Ward - Bradgate Unit,HCL NURSING,HNSI0001406,986.91
Department of Health,Leicestershire Partnership NHS Trust,25/07/23,NURSE - BAND 2 - AGENCY,Watermead Ward (Bradgate Unit),HCL NURSING,HNSI0001406,205.84
Department of Health,Leicestershire Partnership NHS Trust,25/07/23,Nurse - Band 6 -Agency,CAMHS Waiting List Monies,HCL WORKFORCE SOLUTIONS,HWSI0001854,18549.19
Department of Health,Leicestershire Partnership NHS Trust,25/07/23,Nurse - Band 6 -Agency,Crisis Response and Home Treatment,HCL WORKFORCE SOLUTIONS,HWSI0001854,7720.30
Department of Health,Leicestershire Partnership NHS Trust,25/07/23,Nurse - Band 7 - Agency,Crisis Response and Home Treatment,HCL WORKFORCE SOLUTIONS,HWSI0001854,2737.50
Department of Health,Leicestershire Partnership NHS Trust,26/07/23,Lease Rents (IFRS16),"Syston Health Centre (New Building) (P127, LPT)",PHIP (5) LIMITED,LINV545604,37500.00
Department of Health,Leicestershire Partnership NHS Trust,26/07/23,Landline Telephone Rental / Calls,"Beaumont Leys Health Centre (P94, LPT)",VIRGIN MEDIA BUSINESS,853083001/004/0723,348.58
Department of Health,Leicestershire Partnership NHS Trust,26/07/23,Landline Telephone Rental / Calls,"Bennion Centre (including Forest Grange Day Unit) (P8, LPT)",VIRGIN MEDIA BUSINESS,853083001/004/0723,8.77
Department of Health,Leicestershire Partnership NHS Trust,26/07/23,Landline Telephone Rental / Calls,"Bradgate Unit (including Glenvale day Unit) (P7, LPT)",VIRGIN MEDIA BUSINESS,853083001/004/0723,5925.79
Department of Health,Leicestershire Partnership NHS Trust,26/07/23,Landline Telephone Rental / Calls,Braunstone Health and Social Care Centre (Part) (PROPCO),VIRGIN MEDIA BUSINESS,853083001/004/0723,1100.60
Department of Health,Leicestershire Partnership NHS Trust,26/07/23,Landline Telephone Rental / Calls,Bridge Park Plaza - First Floor (LPT),VIRGIN MEDIA BUSINESS,853083001/004/0723,3758.53
Department of Health,Leicestershire Partnership NHS Trust,26/07/23,Landline Telephone Rental / Calls,"Coalville Community Hospital (P138, LPT)",VIRGIN MEDIA BUSINESS,853083001/004/0723,1523.83
Department of Health,Leicestershire Partnership NHS Trust,26/07/23,Landline Telephone Rental / Calls,"Coalville Health Centre (P121, LPT)",VIRGIN MEDIA BUSINESS,853083001/004/0723,117.89
Department of Health,Leicestershire Partnership NHS Trust,26/07/23,Landline Telephone Rental / Calls,County Hall,VIRGIN MEDIA BUSINESS,853083001/004/0723,1518.71
Department of Health,Leicestershire Partnership NHS Trust,26/07/23,Landline Telephone Rental / Calls,Estates & Facilities Central,VIRGIN MEDIA BUSINESS,853083001/004/0723,7.99
Department of Health,Leicestershire Partnership NHS Trust,26/07/23,Landline Telephone Rental / Calls,"Evington Centre (P6, LPT)",VIRGIN MEDIA BUSINESS,853083001/004/0723,204.06
Department of Health,Leicestershire Partnership NHS Trust,26/07/23,Landline Telephone Rental / Calls,HIS,VIRGIN MEDIA BUSINESS,853083001/004/0723,3441.36
Department of Health,Leicestershire Partnership NHS Trust,26/07/23,Landline Telephone Rental / Calls,"Hawthorne Centre - Coalville (P14, LPT)",VIRGIN MEDIA BUSINESS,853083001/004/0723,478.28
Department of Health,Leicestershire Partnership NHS Trust,26/07/23,Landline Telephone Rental / Calls,"Hinckley and Bosworth Community Hospital (Sunnyside) (P133, LPT)",VIRGIN MEDIA BUSINESS,853083001/004/0723,956.78
Department of Health,Leicestershire Partnership NHS Trust,26/07/23,Landline Telephone Rental / Calls,"Hynca Lodge (P33, LPT)",VIRGIN MEDIA BUSINESS,853083001/004/0723,414.30
Department of Health,Leicestershire Partnership NHS Trust,26/07/23,Landline Telephone Rental / Calls,"Legion House, Ashby",VIRGIN MEDIA BUSINESS,853083001/004/0723,24.58
Department of Health,Leicestershire Partnership NHS Trust,26/07/23,Landline Telephone Rental / Calls,"Loughborough Hospital (P136, LPT)",VIRGIN MEDIA BUSINESS,853083001/004/0723,4603.25
Department of Health,Leicestershire Partnership NHS Trust,26/07/23,Landline Telephone Rental / Calls,Mawson House (LPT),VIRGIN MEDIA BUSINESS,853083001/004/0723,466.30
Department of Health,Leicestershire Partnership NHS Trust,26/07/23,Landline Telephone Rental / Calls,Merlyn Vaz Centre (CHP),VIRGIN MEDIA BUSINESS,853083001/004/0723,1359.76
Department of Health,Leicestershire Partnership NHS Trust,26/07/23,Landline Telephone Rental / Calls,"Mett Centre (P49, LPT)",VIRGIN MEDIA BUSINESS,853083001/004/0723,120.90
Department of Health,Leicestershire Partnership NHS Trust,26/07/23,Landline Telephone Rental / Calls,NSPCC Training Cente,VIRGIN MEDIA BUSINESS,853083001/004/0723,159.96
Department of Health,Leicestershire Partnership NHS Trust,26/07/23,Landline Telephone Rental / Calls,New Parks Health Centre (PROPCO),VIRGIN MEDIA BUSINESS,853083001/004/0723,1042.34
Department of Health,Leicestershire Partnership NHS Trust,26/07/23,Landline Telephone Rental / Calls,"OSL House (P54, LPT)",VIRGIN MEDIA BUSINESS,853083001/004/0723,920.16
Department of Health,Leicestershire Partnership NHS Trust,26/07/23,Landline Telephone Rental / Calls,"Orchard Resource Centre (P15, LPT)",VIRGIN MEDIA BUSINESS,853083001/004/0723,536.06
Department of Health,Leicestershire Partnership NHS Trust,26/07/23,Landline Telephone Rental / Calls,Pasley Road Health Centre (PROPCO),VIRGIN MEDIA BUSINESS,853083001/004/0723,168.72
Department of Health,Leicestershire Partnership NHS Trust,26/07/23,Landline Telephone Rental / Calls,"Prince Philip House (P96, LPT)",VIRGIN MEDIA BUSINESS,853083001/004/0723,1146.71
Department of Health,Leicestershire Partnership NHS Trust,26/07/23,Landline Telephone Rental / Calls,Rushey Mead Health Centre (PROPCO),VIRGIN MEDIA BUSINESS,853083001/004/0723,75.50
Department of Health,Leicestershire Partnership NHS Trust,26/07/23,Landline Telephone Rental / Calls,"Springfield Road Health Centre (P92, LPT)",VIRGIN MEDIA BUSINESS,853083001/004/0723,356.57
Department of Health,Leicestershire Partnership NHS Trust,26/07/23,Landline Telephone Rental / Calls,"St Peters Health Center (Part 1st and 2nd floors) (P66, LPT)",VIRGIN MEDIA BUSINESS,853083001/004/0723,1656.61
Department of Health,Leicestershire Partnership NHS Trust,26/07/23,Landline Telephone Rental / Calls,"Swithland House - London Road 352 (P44, LPT)",VIRGIN MEDIA BUSINESS,853083001/004/0723,289.96
Department of Health,Leicestershire Partnership NHS Trust,26/07/23,Landline Telephone Rental / Calls,"The Cedars (P19, LPT)",VIRGIN MEDIA BUSINESS,853083001/004/0723,753.35
Department of Health,Leicestershire Partnership NHS Trust,26/07/23,Landline Telephone Rental / Calls,"The Willows - Cordelia Close (P22, LPT)",VIRGIN MEDIA BUSINESS,853083001/004/0723,491.90
Department of Health,Leicestershire Partnership NHS Trust,26/07/23,Landline Telephone Rental / Calls,"Valentine Centre (P3, LPT)",VIRGIN MEDIA BUSINESS,853083001/004/0723,600.76
Department of Health,Leicestershire Partnership NHS Trust,26/07/23,Landline Telephone Rental / Calls,Warren Park Way 25 (PROPCO),VIRGIN MEDIA BUSINESS,853083001/004/0723,788.44
Department of Health,Leicestershire Partnership NHS Trust,26/07/23,Landline Telephone Rental / Calls,"Westcotes Group -Westcotes House (P78, LPT)",VIRGIN MEDIA BUSINESS,853083001/004/0723,823.74
Department of Health,Leicestershire Partnership NHS Trust,26/07/23,Landline Telephone Rental / Calls,"Winstanley Drive Health Centre (P8, LPT)",VIRGIN MEDIA BUSINESS,853083001/004/0723,46.44
Department of Health,Leicestershire Partnership NHS Trust,27/07/23,Prep_ LT1y -Prepayments Lease Cars,Balance Sheet Collection,LEASEPLAN,511861125,17616.63
Department of Health,Leicestershire Partnership NHS Trust,27/07/23,Trade_Drs_LT1y -Charitable  Funds Contra Account,Balance Sheet Collection,LEASEPLAN,511861125,104.00
Department of Health,Leicestershire Partnership NHS Trust,27/07/23,Trade_Drs_LT1y -Lease Cars Invoicing Contrl Ac.,Balance Sheet Collection,LEASEPLAN,511861125,1894.71
Department of Health,Leicestershire Partnership NHS Trust,27/07/23,VAT_Drs _ LT1y -VAT Contracted Out Services Input Tax,Balance Sheet Collection,LEASEPLAN,511861125,94.80
Department of Health,Leicestershire Partnership NHS Trust,27/07/23,Leased / Hired Vehicles,COVID 19,LEASEPLAN,511861125,472.36
Department of Health,Leicestershire Partnership NHS Trust,27/07/23,Leased / Hired Vehicles,City Planned Care - East - Therapy,LEASEPLAN,511861125,35.00
Department of Health,Leicestershire Partnership NHS Trust,27/07/23,Leased / Hired Vehicles,LD CRIST,LEASEPLAN,511861125,751.52
Department of Health,Leicestershire Partnership NHS Trust,27/07/23,Leased / Hired Vehicles,MHSOP Inpatient Therapy - Evington,LEASEPLAN,511861125,40.00
Department of Health,Leicestershire Partnership NHS Trust,27/07/23,Leased / Hired Vehicles,Respiratory Service,LEASEPLAN,511861125,40.00
Department of Health,Leicestershire Partnership NHS Trust,27/07/23,Leased / Hired Vehicles,School Age Immunisation and Vaccinations,LEASEPLAN,511861125,584.58
Department of Health,Leicestershire Partnership NHS Trust,28/07/23,Services / Recharges from NHS Trusts,Inter Unit I & E Distribution,UHL NHS TRUST (RWE),C0027699,-59730.46
Department of Health,Leicestershire Partnership NHS Trust,28/07/23,NURSE - BAND 5 - AGENCY,"Beaumont Leys Health Centre (P94, LPT)",HCL NURSING,HNSI0001411,18064.08
Department of Health,Leicestershire Partnership NHS Trust,28/07/23,NURSE - BAND 2 - AGENCY,Beechwood Ward,HCL NURSING,HNSI0001411,8517.42
Department of Health,Leicestershire Partnership NHS Trust,28/07/23,NURSE - BAND 5 - AGENCY,Belgrave Health Centre (CHP),HCL NURSING,HNSI0001411,1301.30
Department of Health,Leicestershire Partnership NHS Trust,28/07/23,NURSE - BAND 2 - AGENCY,CHS Surge Ward,HCL NURSING,HNSI0001411,7974.74
Department of Health,Leicestershire Partnership NHS Trust,28/07/23,NURSE - BAND 5 - AGENCY,CHS Surge Ward,HCL NURSING,HNSI0001411,9334.61
Department of Health,Leicestershire Partnership NHS Trust,28/07/23,NURSE - BAND 2 - AGENCY,Clarendon Ward,HCL NURSING,HNSI0001411,8693.20
Department of Health,Leicestershire Partnership NHS Trust,28/07/23,NURSE - BAND 5 - AGENCY,"Coalville Community Hospital (P138, LPT)",HCL NURSING,HNSI0001411,15766.19
Department of Health,Leicestershire Partnership NHS Trust,28/07/23,NURSE - BAND 2 - AGENCY,Coalville Snibston Ward,HCL NURSING,HNSI0001411,6386.87
Department of Health,Leicestershire Partnership NHS Trust,28/07/23,NURSE - BAND 5 - AGENCY,Coalville Snibston Ward,HCL NURSING,HNSI0001411,2786.69
Department of Health,Leicestershire Partnership NHS Trust,28/07/23,NURSE - BAND 2 - AGENCY,Coalville Ward 2,HCL NURSING,HNSI0001411,4421.42
Department of Health,Leicestershire Partnership NHS Trust,28/07/23,NURSE - BAND 5 - AGENCY,Coalville Ward 2,HCL NURSING,HNSI0001411,2193.05
Department of Health,Leicestershire Partnership NHS Trust,28/07/23,NURSE - BAND 2 - AGENCY,Dalgliesh Ward,HCL NURSING,HNSI0001411,9765.71
Department of Health,Leicestershire Partnership NHS Trust,28/07/23,NURSE - BAND 5 - AGENCY,Dalgliesh Ward,HCL NURSING,HNSI0001411,8038.25
Department of Health,Leicestershire Partnership NHS Trust,28/07/23,NURSE - BAND 5 - AGENCY,"East Planned Care - Oadby,Wigston & Harborough",HCL NURSING,HNSI0001411,2537.59
Department of Health,Leicestershire Partnership NHS Trust,28/07/23,NURSE - BAND 2 - AGENCY,H&B Comm Hosp East Ward,HCL NURSING,HNSI0001411,4992.09
Department of Health,Leicestershire Partnership NHS Trust,28/07/23,NURSE - BAND 5 - AGENCY,H&B Comm Hosp East Ward,HCL NURSING,HNSI0001411,5674.27
Department of Health,Leicestershire Partnership NHS Trust,28/07/23,NURSE - BAND 2 - AGENCY,H&B Comm Hosp North Ward,HCL NURSING,HNSI0001411,4996.36
Department of Health,Leicestershire Partnership NHS Trust,28/07/23,NURSE - BAND 5 - AGENCY,H&B Comm Hosp North Ward,HCL NURSING,HNSI0001411,5786.97
Department of Health,Leicestershire Partnership NHS Trust,28/07/23,NURSE - BAND 2 - AGENCY,Lough Swithland Ward,HCL NURSING,HNSI0001411,3346.69
Department of Health,Leicestershire Partnership NHS Trust,28/07/23,NURSE - BAND 5 - AGENCY,Lough Swithland Ward,HCL NURSING,HNSI0001411,2512.95
Department of Health,Leicestershire Partnership NHS Trust,28/07/23,NURSE - BAND 5 - AGENCY,"Prince Philip House (P96, LPT)",HCL NURSING,HNSI0001411,4391.90
Department of Health,Leicestershire Partnership NHS Trust,28/07/23,NURSE - BAND 2 - AGENCY,Rutland Ward Nursing,HCL NURSING,HNSI0001411,2923.67
Department of Health,Leicestershire Partnership NHS Trust,28/07/23,NURSE - BAND 5 - AGENCY,Rutland Ward Nursing,HCL NURSING,HNSI0001411,7034.41
Department of Health,Leicestershire Partnership NHS Trust,28/07/23,NURSE - BAND 2 - AGENCY,St Lukes Stroke Ward,HCL NURSING,HNSI0001411,4495.72
Department of Health,Leicestershire Partnership NHS Trust,28/07/23,NURSE - BAND 5 - AGENCY,St Lukes Stroke Ward,HCL NURSING,HNSI0001411,3618.32
Department of Health,Leicestershire Partnership NHS Trust,28/07/23,NURSE - BAND 2 - AGENCY,St Lukes Ward 3,HCL NURSING,HNSI0001411,4255.10
Department of Health,Leicestershire Partnership NHS Trust,28/07/23,NURSE - BAND 5 - AGENCY,St Lukes Ward 3,HCL NURSING,HNSI0001411,5111.27
Department of Health,Leicestershire Partnership NHS Trust,28/07/23,NURSE - BAND 5 - AGENCY,West Planned Care  - Charnwood Hub,HCL NURSING,HNSI0001411,1510.17
Department of Health,Leicestershire Partnership NHS Trust,28/07/23,NURSE - BAND 5 - AGENCY,West Planned Care  - Hinckley Hub,HCL NURSING,HNSI0001411,1496.46
